Cogmind - Beta 13 @@@ ROGUE MODE // 2024.04.05 @ 16:07:24 Player: m1m1c Result: Destroyed by L-31 Rogue with Katana Performance ------------- Evolutions (1) 500 Regions Visited (3) 600 Robots Destroyed (25) 125 Value Destroyed (385) 385 Prototype IDs (1) 20 Alien Tech Used (0) 0 Bonus (25) 25 TOTAL SCORE: 1655 Bonus ------- Follower Combat Kills 25 Cogmind --------- Core Integrity 0/400 Matter 68/300 Energy 226/250 System Corruption 0% Temperature Cool (0) Movement Core (100) Ox1 Location -9/Materials Parts ------- > --- POWER (1) -------- (None) > --- PROPULSION (2) --- (None) > --- UTILITY (4) ------ Medium Battery > --- WEAPON (2) ------- Heavy Assault Rifle > --- INVENTORY (5) ---- (None) Peak State ------------ > --- POWER ------------ Light Ion Engine > --- PROPULSION ------- Compact Wheel Compact Wheel > --- UTILITY ---------- Small Storage Unit Sensor Array ECM Suite Core Shielding > --- WEAPON ----------- Grenade Launcher Datajack > --- INVENTORY -------- Wheel Medium Battery Core Shielding Grenade Launcher [Rating: 9] Favorites ----------- Power Light Ion Engine Engine Light Ion Engine Propulsion Compact Wheel Wheel Compact Wheel Utility Small Storage Unit Device ECM Suite Storage Small Storage Unit Protection Core Shielding Weapon Grenade Launcher Energy Cannon Advanced Beam Cannon Ballistic Gun Light Assault Rifle Launcher Grenade Launcher Special Melee Weapon Datajack Build | -11 -10 -10 -9 ------- Run | Yrd Mat Min Mat Slots Evolved 2 | . . . 2 Power . | . . . . Propulsion . | . . . . Utility 2 | . . . 2 Weapon . | . . . . Parts Attached 19 | 5 4 1 9 Power 1 | 1 . . . Engine 1 | 1 . . . Core . | . . . . Reactor . | . . . . Propulsion 3 | 2 . . 1 Treads . | . . . . Leg . | . . . . Wheel 3 | 2 . . 1 Hover . | . . . . Flight . | . . . . Utility 7 | 1 2 . 4 Device 2 | . 1 . 1 Storage 3 | 1 1 . 1 Processor . | . . . . Hackware . | . . . . Protection 2 | . . . 2 Artifact . | . . . . Weapon 8 | 1 2 1 4 Energy Gun . | . . . . Energy Cannon 1 | . . . 1 Ballistic Gun 2 | 1 . . 1 Ballistic Cannon . | . . . . Launcher 4 | . 2 . 2 Special Weapon . | . . . . Impact Weapon . | . . . . Slashing Weapon . | . . . . Piercing Weapon . | . . . . Special Melee Weapon 1 | . . 1 . Unidentified Prototypes 1 | . . . 1 Parts Lost 13 | . . . 13 Power 1 | . . . 1 Propulsion 3 | . . . 3 Utility 5 | . . . 5 Weapon 4 | . . . 4 Highest Loss Streak 13 | . . . 13 To Critical Strikes . | . . . . Average Slot Usage (%) 90 | . 87 100 70 Engine 12 | . 14 14 6 Wheel 25 | . 28 28 13 Device 9 | . 2 14 14 Storage 13 | . 14 14 11 Protection 1 | . . . 10 Ballistic Gun 2 | . 6 . . Launcher 17 | . 20 19 4 Special Melee Weapon 4 | . . 8 6 Naked Turns . | . . . . Heaviest Build 16 | 9 16 16 16 Greatest Support 32 | 32 32 32 32 Greatest Overweight (x) 2 | . . . 2 Average Overweight (x) . | . . . . Largest Inventory Capacity 8 | 8 8 8 8 Average Capacity 7 | 7 8 8 7 Most Carried 6 | . 6 6 5 Average Carried 3 | . 1 6 3 Final Capacity 8 | 8 8 8 5 Final Carried 6 | . 6 6 . Class Distribution -------------------- 100% | Mutant Dominant Class ---------------- Mutant | -10/Materials Mutant | -10/Mines Mutant | -9/Materials Resources | -11 -10 -10 -9 ----------- Run | Yrd Mat Min Mat Matter Collected 388 | 230 76 10 72 Remotely . | . . . . Salvage Created 352 | . 202 23 127 Parts 32 | . 15 7 10 Haulers Intercepted 1 | . 1 . . Recyclers Shooed . | . . . . Parts Field Recycled . | . . . . Retrieved Matter . | . . . . Parts Self-Destructed . | . . . . Prevented . | . . . . Kills | -11 -10 -10 -9 ------- Run | Yrd Mat Min Mat Combat Hostiles Destroyed 14 | . 5 6 3 AOE 14 | . 5 6 3 Classes Destroyed 8 | . 8 . . Worker 3 | . 1 . 2 Builder 2 | . 2 . . Hauler 1 | . 1 . . Recycler 1 | . 1 . . Mechanic 1 | . 1 . . Watcher 3 | . 2 . 1 Swarmer 9 | . 3 6 . Grunt 5 | . 2 . 3 Best Kill Streak 4 | . 4 3 4 Combat Bots Only 3 | . 3 3 2 Max Kills in Single Turn 3 | . 3 3 2 Gunslinging . | . . . . Exploded 3 | . 3 3 2 Melee . | . . . . Uniques/NPCs Destroyed . | . . . . Combat | -11 -10 -10 -9 -------- Run | Yrd Mat Min Mat Hostile Shots Fired 104 | . 15 11 78 Missed 29 | . 6 4 19 Damage Taken 1260 | . 116 131 1013 Core 487 | . 20 43 424 Absorbed by Shields . | . . . . Redirected to Shielding 72 | . . . 72 Core Remaining (%) 87 | 100 . 74 . Volleys Fired 35 | . 16 5 14 Largest 2 | . 2 2 1 Hottest 68 | . 60 60 68 Shots Fired 52 | . 32 6 14 Gun 20 | . 13 . 7 Cannon 3 | . . . 3 Launcher 29 | . 19 6 4 Special . | . . . . Kinetic 20 | . 13 . 7 Thermal 3 | . . . 3 Explosive 29 | . 19 6 4 Electromagnetic . | . . . . Robot Hit Streak 6 | . 2 . 6 Robot Miss Streak 2 | . 2 1 1 Penetration Max . | . . . . Secondary Targets . | . . . . Shots Hit Robots 20 | . 6 2 12 Core Hits 41 | . 17 8 16 Critical Kills . | . . . . Critical Parts Destroyed . | . . . . Critical Strikes . | . . . . Melee Attacks 4 | . . 2 2 Impact . | . . . . Slashing . | . . . . Piercing . | . . . . Sneak Attacks 1 | . . 1 . Combat Hostiles . | . . . . Follow-up Attacks . | . . . . Damage Inflicted 1638 | . 884 260 494 Guns 114 | . 28 . 86 Cannons 62 | . . . 62 Explosions 1446 | . 852 260 334 Melee . | . . . . Ramming 16 | . 4 . 12 Kinetic 114 | . 28 . 86 Thermal 62 | . . . 62 Explosive 1446 | . 852 260 334 Electromagnetic . | . . . . Impact . | . . . . Slashing . | . . . . Piercing . | . . . . Highest Corruption 2 | 2 2 2 . Average Corruption 2 | 2 2 2 . Corruption Purged . | . . . . Corruption Blocked . | . . . . Effects 5 | . 2 3 . Matter Fused 1 | . 1 . . Heat Flow Errors 2 | . 1 1 . Energy Discharges 1 | . . 1 . Data Loss (major) 1 | . . 1 . Overload Shots . | . . . . Overflow Damage 58 | . 43 15 . Projectiles . | . . . . Explosions 58 | . 43 15 . Melee . | . . . . Knockbacks 1 | . . . 1 Impact 1 | . . . 1 Kinetic . | . . . . Secondary . | . . . . Self-Inflicted Damage 123 | . 18 77 28 Shots 6 | . 2 3 1 Rammed 11 | 1 1 . 9 Targets Rammed 11 | 1 1 . 9 Kicked . | . . . . Crushed . | . . . . Highest Temperature 264 | . 129 264 66 Average Temperature 49 | . 23 134 27 Received Heat Transfer 351 | . 48 . 303 Siege Activations . | . . . . Robots Corrupted . | . . . . Combat Hostiles . | . . . . Parts Fried . | . . . . Impact Corruptions . | . . . . Robots Melted . | . . . . Combat Hostiles . | . . . . Parts Melted . | . . . . Heat Transferred 111 | . . . 111 Parts Sabotaged . | . . . . Parts Stolen . | . . . . Parts Stripped . | . . . . Power Chain Reactions . | . . . . Alert | -11 -10 -10 -9 ------- Run | Yrd Mat Min Mat Peak Influence 315 | . 265 315 175 Initial 122 | . . 103 122 Average 185 | . 156 254 126 Maximum Alert Level 1 | . 1 1 . Low Security (%) 39 | 100 52 . 100 Level 1 60 | . 47 100 . Level 2 . | . . . . Level 3 . | . . . . Level 4 . | . . . . Level 5 . | . . . . High Security . | . . . . Max Security . | . . . . Squads Dispatched 2 | . 1 . 1 Investigation . | . . . . Extermination . | . . . . Reinforcement 2 | . 1 . 1 Assault . | . . . . Garrison . | . . . . Intercept . | . . . . Searches Triggered . | . . . . Construction Impeded . | . . . . Haulers Reinforced . | . . . . Active Scanning Responses . | . . . . Cargo Convoy Interrupts . | . . . . Stealth | -11 -10 -10 -9 --------- Run | Yrd Mat Min Mat Distress Signals 2 | . 1 . 1 Communications Jammed . | . . . . Distress Signals . | . . . . Times Spotted 27 | . 10 3 14 Peak Tracking Total 10 | . 3 3 10 Tactical Retreats 2 | . . . 2 Traps | -11 -10 -10 -9 ------- Run | Yrd Mat Min Mat Traps Triggered . | . . . . Indirectly . | . . . . Trap Hack Attempts . | . . . . Triggered . | . . . . Disarmed . | . . . . Reprogrammed . | . . . . Reused . | . . . . Traps Extracted . | . . . . Installed . | . . . . Triggered . | . . . . Machines | -11 -10 -10 -9 ---------- Run | Yrd Mat Min Mat Machines Disabled 3 | . . 3 . Max in Single Turn 2 | . . 2 . Machines Repaired . | . . . . Machines Dismantled . | . . . . Machines Sabotaged . | . . . . Overloaded Fab Kills . | . . . . Hacking | -11 -10 -10 -9 --------- Run | Yrd Mat Min Mat Machines Accessed 2 | . 2 . . Terminals 1 | . 1 . . Fabricators . | . . . . Repair Stations . | . . . . Recycling Units 1 | . 1 . . Scanalyzers . | . . . . Garrison Access . | . . . . Total Hacks 5 | . 5 . . Successful 1 | . 1 . . Failed 4 | . 4 . . Catastrophic . | . . . . Database Lockouts . | . . . . Manual . | . . . . Terminals 2 | . 2 . . Fabricators . | . . . . Repair Stations . | . . . . Recycling Units 3 | . 3 . . Scanalyzers . | . . . . Garrison Access . | . . . . Terminal Hacks 1 | . 1 . . Zone Layout 1 | . 1 . . Fabricator Hacks . | . . . . Repair Station Hacks . | . . . . Recycling Unit Hacks . | . . . . Scanalyzer . | . . . . Garrison Access Hacks . | . . . . Unauthorized Hacks . | . . . . Terminals . | . . . . Fabricators . | . . . . Repair Stations . | . . . . Recycling Units . | . . . . Scanalyzers . | . . . . Garrison Access . | . . . . Data Cores Recovered . | . . . . Used . | . . . . Hacking Detections 2 | . 2 . . Full Trace Events . | . . . . Feedback Events . | . . . . Feedback Blocked . | . . . . Robot Schematics Acquired . | . . . . Robots Built . | . . . . Authchips . | . . . . Time . | . . . . Total Robot Build Rating . | . . . . Part Schematics Acquired . | . . . . Parts Built . | . . . . Authchips . | . . . . Time . | . . . . Total Part Build Rating . | . . . . Parts Repaired . | . . . . Time . | . . . . Parts Recycled . | . . . . Recycled Matter . | . . . . Retrieved Matter . | . . . . Retrieved Components . | . . . . Parts Scanalyzed . | . . . . Part Schematics Acquired . | . . . . Parts Damaged . | . . . . Bothacking | -11 -10 -10 -9 ------------ Run | Yrd Mat Min Mat Used RIF Installer . | . . . . Robots Hacked 2 | . . 2 . Non-combat 1 | . . 1 . Combat 1 | . . 1 . Robot Hacks Applied 2 | . . 2 . parse_system 1 | . . 1 . no_distress 1 | . . 1 . Relay Couplers Released . | . . . . Fabnet Peak Effective % . | . . . . Robots Rewired . | . . . . Allies Hacked . | . . . . Hacks Repelled . | . . . . Allies | -11 -10 -10 -9 -------- Run | Yrd Mat Min Mat Total Allies 2 | . . 2 . Largest Group 2 | . . 2 2 Highest-Rated Group 50 | . . 50 50 Highest-Rated Ally 31 | . . 31 31 Total Orders . | . . . . Ally Attacks 10 | . . . 10 Total Damage 127 | . . . 127 Kills 1 | . . . 1 Allies Corrupted . | . . . . Allies Melted . | . . . . Intel | -11 -10 -10 -9 ------- Run | Yrd Mat Min Mat Robot Analysis Total . | . . . . Derelict Logs Recovered 1 | . . 1 . Drone Launches . | . . . . Drone Recoveries . | . . . . Exploration | -11 -10 -10 -9 ------------- Run | Yrd Mat Min Mat Turns Passed 894 | 50 340 380 124 Spaces Moved 757 | 43 281 365 68 Core 12 | 3 . . 9 Treads . | . . . . Legs . | . . . . Wheels 745 | 40 281 365 59 Hover . | . . . . Flight . | . . . . Fastest Speed 50 | 50 100 100 50 Average Speed 100 | 96 100 100 103 Slowest Speed 150 | 100 100 100 150 Overloaded Moves . | . . . . Propulsion Burnouts . | . . . . Robots Hopped . | . . . . Cave-ins Triggered . | . . . . Exploration Rate (%) 30 | 4 47 64 7 Regions Visited 3 Branch Regions 1 Pre-discovered Areas . | . . . . Known Exits Taken . | . . . . Unknown Exits Taken 3 | 1 1 1 . Scrap Searched . | . . . . Spaces Dug 5 | . . 5 . Terrain Destroyed 125 | . 74 32 19 Melee . | . . . . Projectile . | . . . . AOE 125 | . 74 32 19 Terrain Rammed . | . . . . Walls Destroyed . | . . . . Machines Disabled . | . . . . Actions | -11 -10 -10 -9 --------- Run | Yrd Mat Min Mat Total 833 | 48 310 372 103 Wait . | . . . . Move 754 | 42 280 364 68 Hop . | . . . . Pick Up 7 | . 7 . . Fast Attach 10 | 5 3 . 2 Attach 8 | . 1 . 7 Detach 1 | . . . 1 Swap 1 | . . 1 . Drop 2 | . 2 . . Fire 35 | . 16 5 14 Melee 4 | . . 2 2 Ram 11 | 1 1 . 9 Kick . | . . . . Crush . | . . . . Escape Stasis . | . . . . Rewire . | . . . . Trap . | . . . . Miscellaneous . | . . . . Route ------- -11/Scrapyard -10/Materials (discovered 2 exits: [Mat] / [*Min]) -10/Mines -9/Materials (discovered 1 exit: Mat) History --------- Turn | Location | Event 6 | -11/Scrapyard | Discovered new exit (range 16) 51 | -11/Scrapyard | Entered Materials 270 | -10/Materials | Discovered new exit (range 12) 270 | -10/Materials | Discovered new exit (range 19) 300 | -10/Materials | Build established: Mutant 391 | -10/Materials | Entered Mines 467 | -10/Mines | Learned 2 Materials zone layouts 580 | -10/Mines | Discovered new exit (range 10) 771 | -10/Mines | Entered Materials 771 | -9/Materials | Accompanied by 2 allies 771 | -9/Materials | Evolved 2 slots: Utility x2 772 | -9/Materials | Identified exit to Materials 776 | -9/Materials | Led the pair of lost Derelicts to an unsafe place 869 | -9/Materials | Core integrity fell below 50% 883 | -9/Materials | Core integrity fell below 20% 895 | -9/Materials | Destroyed by L-31 Rogue with Katana Last Messages --------------- Broken Com. Wheel destroyed. Slammed into G-34 Mercenary. G-34 Mercenary suffers critical hit (Burn). G-34 Mercenary destroyed. Acquired 50 matter. Sensor Array destroyed. Acquired Prototype Energy Cannon. Identified Adv. Beam Cannon. G-47 Trooper destroyed. Core Shielding destroyed. Adv. Beam Cannon destroyed. Grenade Launcher destroyed. G-34 Mercenary destroyed. Grenade Launcher destroyed. Wheel destroyed. Slammed into L-31 Rogue. Acquired 22 matter. Sml. Storage Unit destroyed. Acquired Hvy. Assault Rifle. Core Shielding destroyed. Map ----- +----------------------------------------------------+ | ????????????????????????????????? | | ????????????????????????????????? | | ????????????????????????????????# | | ??????????????????????????????? # | | ?????????????????????????"""??? # | | ?????????????????????????"""?? # | | ?????????????????????????"""?? # | | ????????????????????????? ? # | | ?????????????????????????#/##+# | | ?????????????????????????# = * | | ?????????????????????????# ! | | ?????????????????????????# | | ?????????################# | | ?????????# | | ?????????# = | | ?????????# %! # | | ?????????### ############### #? | | ???????????# #?????????????? #? | | ???????????# #??????????????? #? | | ?########### #???????????????? #? | | ?# # ###???????????????#? | | ?# "T" =# #????????????????? | | ?# *%! #????????????????? | | ?# """ *g% #????????????????? | | ?# """ = l!= +????????????????? | | ?# """ @! # #????????????????? | | ?# ![ # #????????????????? | | ?# # #????????????????? | | ?########### #????????????????? | | ???????????+ #????????????????? | | ???????????# #????????????????? | | ???????????# #????????????????? | | ???????????# ????????????????? | | ???????????+ ????????????????? | | ???????????# ????????????????? | | ???????????######???????????????? | | ????????????????????????????????? | | ????????????????????????????????? | | ????????????????????????????????? | | ????????????????????????????????? | | ????????????????????????????????? | | ????????????????????????????????? | | ????????????????????????????????? | | ????????????????????????????????? | | ????????????????????????????????? | | ????????????????????????????????? | | ????????????????????????????????? | | ????????????????????????????????? | | ????????????????????????????????? | | ????????????????????????????????? | +----------------------------------------------------+ Best States ------------- Heat Dissipation 28 Energy Generation 10 Energy Capacity 250 Matter Stores 282 Matter Capacity 300 Sight Range 16 Robot Scan Range 14 Terrain Scan Density 10 ECM Strength 1 Core Shielding 20 Evasion (%) 50 Item Schematics ----------------- None Robot Schematics ------------------ None Fabricated ------------ Nothing Alien Tech Used ----------------- None Achievements -------------- None Challenges ------------ None Game ------ Seed ColdSwarmGravjet Manual? 0 Play Time 00:13:34 Cumulative 7.1 hours Start 2024.04.05 @ 15:56:05 End 2024.04.05 @ 16:07:24 Sessions 1 Manual Loads 0 Difficulty Rogue Special Mode None Game No. 26 Rogue 26 Adventurer 0 Explorer 0 Win Type - Total 0 Types 0/0/0/0/0/0/0/0/0 Lore% 6 Gallery% 12 Achievement% 10 Wizard Run 0 Options --------- Layout 1 ASCII 1 Keyboard 0 Movement Arrows Keybinds 0 Fullscreen 1 Font 18/SmallcapsGlow Map View 50x40 Zoom Use 0% Tactical HUD 0 Map Filters NONE Filters NONE Steam 1 RUN: 049d1b50-6f3d-4c7c-a082-a3e07c0d8a7b